[Event "SS Manhem Chess Week GM and IM tournaments 2018"]
[Site "Molnlycke kulturhus, Biblioteksgatan 2, Molnlycke, Sweden"]
[Date "2018.08.15"]
[Round "6.5"]
[White "Schneider, Stefan"]
[Black "Vestby-Ellingsen, Mads"]
[Result "0-1"]
[TimeControl "90 minutes for 40 moves + 30 minutes for the rest of the game + 30 seconds per move from move one."]
[WhiteTitle "IM"]
[BlackTitle "FM"]
[WhiteFideId "1703013"]
[BlackFideId "1520857"]
[WhiteElo "2399"]
[BlackElo "2409"]

1. d4 {[%clk 01:30:55]} {[%emt 00:00:04]} Nf6 {[%clk 01:30:48]} {[%emt
00:00:12]} 2. Nf3 {[%clk 01:30:34]} {[%emt 00:00:51]} g6 {[%clk 01:31:00]}
{[%emt 00:00:17]} 3. c4 {[%clk 01:30:39]} {[%emt 00:00:26]} Bg7 {[%clk
01:31:15]} {[%emt 00:00:14]} 4. e3 {[%clk 01:30:45]} {[%emt 00:00:26]} O-O
{[%clk 01:30:47]} {[%emt 00:00:56]} 5. Be2 {[%clk 01:31:02]} {[%emt 00:00:14]}
d6 {[%clk 01:25:11]} {[%emt 00:06:06]} 6. O-O {[%clk 01:31:07]} {[%emt
00:00:26]} Nbd7 {[%clk 01:25:08]} {[%emt 00:00:33]} 7. Nc3 {[%clk 01:31:25]}
{[%emt 00:00:12]} e5 {[%clk 01:24:35]} {[%emt 00:01:02]} 8. Qc2 {[%clk
01:31:34]} {[%emt 00:00:22]} Re8 {[%clk 01:24:13]} {[%emt 00:00:51]} 9. Re1
{[%clk 01:30:49]} {[%emt 00:01:15]} Nf8 {[%clk 01:22:47]} {[%emt 00:01:55]} 10.
b4 {[%clk 01:10:09]} {[%emt 00:21:12]} e4 {[%clk 01:19:12]} {[%emt 00:04:05]}
11. Nd2 {[%clk 01:10:11]} {[%emt 00:00:28]} Bf5 {[%clk 01:19:23]} {[%emt
00:00:18]} 12. Bb2 {[%clk 01:09:41]} {[%emt 00:01:02]} h5 {[%clk 01:18:34]}
{[%emt 00:01:17]} 13. d5 {[%clk 01:04:26]} {[%emt 00:05:46]} a6 {[%clk
00:58:00]} {[%emt 00:21:03]} 14. Nb3 {[%clk 00:59:34]} {[%emt 00:05:23]} h4
{[%clk 00:53:08]} {[%emt 00:05:21]} 15. Nd4 {[%clk 00:56:44]} {[%emt 00:03:20]}
Bc8 {[%clk 00:48:27]} {[%emt 00:05:10]} 16. h3 {[%clk 00:53:22]} {[%emt
00:03:53]} N8h7 {[%clk 00:43:47]} {[%emt 00:05:08]} 17. Rad1 {[%clk 00:50:01]}
{[%emt 00:03:51]} g5 {[%clk 00:41:40]} {[%emt 00:02:36]} 18. c5 {[%clk
00:34:08]} {[%emt 00:16:25]} Qe7 {[%clk 00:32:40]} {[%emt 00:09:29]} 19. cxd6
{[%clk 00:25:17]} {[%emt 00:09:22]} cxd6 {[%clk 00:32:51]} {[%emt 00:00:18]} 20.
b5 {[%clk 00:24:43]} {[%emt 00:01:05]} g4 {[%clk 00:26:06]} {[%emt 00:07:14]}
21. hxg4 {[%clk 00:23:28]} {[%emt 00:01:46]} Nxg4 {[%clk 00:25:54]} {[%emt
00:00:41]} 22. bxa6 {[%clk 00:21:02]} {[%emt 00:02:57]} h3 {[%clk 00:17:34]}
{[%emt 00:08:50]} 23. Bxg4 {[%clk 00:14:17]} {[%emt 00:07:16]} Bxg4 {[%clk
00:17:40]} {[%emt 00:00:23]} 24. f3 {[%clk 00:12:31]} {[%emt 00:02:16]} exf3
{[%clk 00:17:20]} {[%emt 00:00:49]} 25. gxf3 {[%clk 00:11:56]} {[%emt
00:01:06]} Bh5 {[%clk 00:09:46]} {[%emt 00:08:03]} 26. axb7 {[%clk 00:09:18]}
{[%emt 00:03:09]} Rab8 {[%clk 00:06:55]} {[%emt 00:03:20]} 27. Ne4 {[%clk
00:02:24]} {[%emt 00:07:24]} Ng5 {[%clk 00:03:09]} {[%emt 00:04:16]} 28. Nxg5
{[%clk 00:02:02]} {[%emt 00:00:53]} Qxg5+ {[%clk 00:03:33]} {[%emt 00:00:06]}
29. Kh1 {[%clk 00:01:35]} {[%emt 00:00:57]} Bg6 {[%clk 00:01:30]} {[%emt
00:02:32]} 30. e4 {[%clk 00:00:49]} {[%emt 00:01:17]} Rxb7 {[%clk 00:01:49]}
{[%emt 00:00:11]} 31. Rg1 {[%clk 00:00:42]} {[%emt 00:00:37]} Qh5 {[%clk
00:01:12]} {[%emt 00:01:07]} 32. Rdf1 {[%clk 00:00:40]} {[%emt 00:00:33]} Kh7
{[%clk 00:00:36]} {[%emt 00:01:06]} 33. Nb3 {[%clk 00:00:47]} {[%emt 00:00:23]}
Be5 {[%clk 00:00:31]} {[%emt 00:00:35]} 34. Bxe5 {[%clk 00:01:03]} {[%emt
00:00:15]} Rxe5 {[%clk 00:00:40]} {[%emt 00:00:21]} 35. Qc8 {[%clk 00:01:12]}
{[%emt 00:00:18]} Ra7 {[%clk 00:00:33]} {[%emt 00:00:40]} 36. Rg3 {[%clk
00:01:12]} {[%emt 00:00:29]} f5 {[%clk 00:00:45]} {[%emt 00:00:18]} 37. Rf2
{[%clk 00:00:44]} {[%emt 00:00:59]} Re8 {[%clk 00:01:06]} {[%emt 00:00:09]} 38.
Qc1 {[%clk 00:00:36]} {[%emt 00:00:39]} fxe4 {[%clk 00:00:51]} {[%emt
00:00:45]} 39. Kh2 {[%clk 00:00:32]} {[%emt 00:00:34]} e3 {[%clk 00:00:41]}
{[%emt 00:00:40]} 40. Re2 {[%clk 00:00:32]} {[%emt 00:00:30]} Qe5 {[%clk
00:00:32]} {[%emt 00:00:38]} 41. Qc4 {[%clk 00:23:39]} {[%emt 00:07:22]} Rg7
{[%clk 00:09:13]} {[%emt 00:21:49]} 42. Qd4 {[%clk 00:05:19]} {[%emt 00:18:51]}
Qxg3+ {[%clk 00:07:11]} {[%emt 00:02:31]} 43. Kxg3 {[%clk 00:05:46]} {[%emt
00:00:04]} Bd3+ {[%clk 00:07:31]} {[%emt 00:00:09]} 44. Qxg7+ {[%clk 00:04:42]}
{[%emt 00:01:34]} Kxg7 {[%clk 00:07:54]} {[%emt 00:00:06]} 45. Re1 {[%clk
00:05:03]} {[%emt 00:00:10]} Kf6 {[%clk 00:06:19]} {[%emt 00:02:05]} 46. Kxh3
{[%clk 00:01:20]} {[%emt 00:04:14]} Kf5 {[%clk 00:06:01]} {[%emt 00:00:48]} 47.
Nd4+ {[%clk 00:01:22]} {[%emt 00:00:28]} Kf4 {[%clk 00:06:01]} {[%emt
00:00:29]} 48. Kg2 {[%clk 00:01:24]} {[%emt 00:00:29]} Rg8+ {[%clk 00:06:12]}
{[%emt 00:00:18]} 49. Kh2 {[%clk 00:01:17]} {[%emt 00:00:37]} Bc4 {[%clk
00:05:26]} {[%emt 00:01:15]} 50. a4 {[%clk 00:00:43]} {[%emt 00:01:05]} Bxd5
{[%clk 00:05:13]} {[%emt 00:00:42]} 51. Nc2 {[%clk 00:00:48]} {[%emt 00:00:25]}
Rh8+ {[%clk 00:04:05]} {[%emt 00:01:38]} 52. Kg1 {[%clk 00:01:13]} {[%emt
00:00:06]} Bxf3 {[%clk 00:04:05]} {[%emt 00:00:29]} 53. Rxe3 {[%clk 00:00:31]}
{[%emt 00:01:13]} Rh1+ {[%clk 00:04:24]} {[%emt 00:00:10]} 54. Kf2 {[%clk
00:00:59]} {[%emt 00:00:03]} Rh2+ {[%clk 00:04:45]} {[%emt 00:00:09]} 55. Ke1
{[%clk 00:01:15]} {[%emt 00:00:14]} Rxc2 {[%clk 00:05:06]} {[%emt 00:00:09]} 56.
Ra3 {[%clk 00:01:27]} {[%emt 00:00:19]} Bd5 {[%clk 00:04:47]} {[%emt 00:00:48]}
57. Rd3 {[%clk 00:01:38]} {[%emt 00:00:19]} Ke5 {[%clk 00:04:26]} {[%emt
00:00:50]} 58. Re3+ {[%clk 00:01:47]} {[%emt 00:00:22]} Kd4 {[%clk 00:04:39]}
{[%emt 00:00:16]} 59. Rh3 {[%clk 00:02:14]} {[%emt 00:00:03]} Ra2 {[%clk
00:04:45]} {[%emt 00:00:23]} 60. Rh6 {[%clk 00:02:34]} {[%emt 00:00:11]} Kc5
{[%clk 00:04:54]} {[%emt 00:00:20]} 61. Rh4 {[%clk 00:02:50]} {[%emt 00:00:14]}
Bc4 {[%clk 00:05:11]} {[%emt 00:00:13]} 0-1

[Event "SS Manhem Chess Week GM and IM tournaments 2018"]
[Site "Molnlycke kulturhus, Biblioteksgatan 2, Molnlycke, Sweden"]
[Date "2018.08.15"]
[Round "6.6"]
[White "Vypkhaniuk, Ihor"]
[Black "Storme, Isak"]
[Result "1-0"]
[TimeControl "90 minutes for 40 moves + 30 minutes for the rest of the game + 30 seconds per move from move one."]
[WhiteTitle "FM"]
[BlackTitle "FM"]
[WhiteFideId "14112256"]
[BlackFideId "1728113"]
[WhiteElo "2357"]
[BlackElo "2279"]

1. c4 {[%clk 01:30:55]} {[%emt 00:00:04]} e5 {[%clk 01:30:28]} {[%emt
00:00:29]} 2. g3 {[%clk 01:30:25]} {[%emt 00:01:03]} Nf6 {[%clk 01:29:11]}
{[%emt 00:01:47]} 3. Bg2 {[%clk 01:30:08]} {[%emt 00:00:47]} d5 {[%clk
01:28:19]} {[%emt 00:01:23]} 4. cxd5 {[%clk 01:30:18]} {[%emt 00:00:20]} Nxd5
{[%clk 01:28:37]} {[%emt 00:00:12]} 5. Nf3 {[%clk 01:29:58]} {[%emt 00:00:49]}
Nc6 {[%clk 01:28:49]} {[%emt 00:00:18]} 6. O-O {[%clk 01:29:45]} {[%emt
00:00:43]} Nb6 {[%clk 01:24:20]} {[%emt 00:04:59]} 7. d3 {[%clk 01:20:41]}
{[%emt 00:09:34]} Be7 {[%clk 01:22:00]} {[%emt 00:02:49]} 8. Nbd2 {[%clk
01:20:00]} {[%emt 00:01:12]} O-O {[%clk 01:19:17]} {[%emt 00:03:14]} 9. a3
{[%clk 01:16:34]} {[%emt 00:03:56]} Re8 {[%clk 01:09:29]} {[%emt 00:10:17]} 10.
b3 {[%clk 01:11:30]} {[%emt 00:05:34]} Bf8 {[%clk 01:03:58]} {[%emt 00:06:01]}
11. Bb2 {[%clk 01:10:38]} {[%emt 00:01:22]} Nd4 {[%clk 01:00:48]} {[%emt
00:03:40]} 12. Rc1 {[%clk 01:09:51]} {[%emt 00:01:16]} c6 {[%clk 00:57:28]}
{[%emt 00:03:51]} 13. Nxd4 {[%clk 00:38:32]} {[%emt 00:31:50]} exd4 {[%clk
00:56:13]} {[%emt 00:01:45]} 14. Nf3 {[%clk 00:38:47]} {[%emt 00:00:14]} Bg4
{[%clk 00:45:17]} {[%emt 00:11:26]} 15. Nxd4 {[%clk 00:35:38]} {[%emt
00:03:40]} Bxa3 {[%clk 00:45:26]} {[%emt 00:00:20]} 16. Bxa3 {[%clk 00:35:14]}
{[%emt 00:00:55]} Qxd4 {[%clk 00:45:50]} {[%emt 00:00:05]} 17. Re1 {[%clk
00:34:45]} {[%emt 00:00:58]} Rad8 {[%clk 00:38:00]} {[%emt 00:08:20]} 18. Qd2
{[%clk 00:33:51]} {[%emt 00:01:23]} Qd7 {[%clk 00:35:33]} {[%emt 00:02:56]} 19.
Bb2 {[%clk 00:31:14]} {[%emt 00:03:09]} Re6 {[%clk 00:32:49]} {[%emt 00:03:12]}
20. Ra1 {[%clk 00:28:53]} {[%emt 00:02:53]} Rde8 {[%clk 00:19:33]} {[%emt
00:13:46]} 21. f3 {[%clk 00:24:58]} {[%emt 00:04:25]} Bf5 {[%clk 00:19:53]}
{[%emt 00:00:10]} 22. e4 {[%clk 00:23:58]} {[%emt 00:01:30]} Bg6 {[%clk
00:20:13]} {[%emt 00:00:09]} 23. Rxa7 {[%clk 00:19:15]} {[%emt 00:05:13]} Rd6
{[%clk 00:14:57]} {[%emt 00:05:47]} 24. d4 {[%clk 00:14:30]} {[%emt 00:05:15]}
f5 {[%clk 00:13:24]} {[%emt 00:02:02]} 25. Qb4 {[%clk 00:09:47]} {[%emt
00:05:13]} fxe4 {[%clk 00:10:17]} {[%emt 00:03:37]} 26. fxe4 {[%clk 00:08:00]}
{[%emt 00:02:17]} Qc7 {[%clk 00:09:52]} {[%emt 00:00:55]} 27. Rxb7 {[%clk
00:04:31]} {[%emt 00:04:00]} Qxb7 {[%clk 00:09:56]} {[%emt 00:00:25]} 28. Qxd6
{[%clk 00:05:00]} {[%emt 00:00:02]} Nc4 {[%clk 00:08:56]} {[%emt 00:01:30]} 29.
bxc4 {[%clk 00:04:54]} {[%emt 00:00:35]} Qxb2 {[%clk 00:09:20]} {[%emt
00:00:06]} 30. Rf1 {[%clk 00:01:10]} {[%emt 00:04:15]} Qc3 {[%clk 00:08:30]}
{[%emt 00:01:21]} 31. Qxc6 {[%clk 00:00:54]} {[%emt 00:00:46]} Qxd4+ {[%clk
00:06:34]} {[%emt 00:02:25]} 32. Kh1 {[%clk 00:00:56]} {[%emt 00:00:28]} Rxe4
{[%clk 00:06:44]} {[%emt 00:00:20]} 33. Qa8+ {[%clk 00:00:53]} {[%emt
00:00:33]} Re8 {[%clk 00:06:54]} {[%emt 00:00:20]} 34. Bd5+ {[%clk 00:01:05]}
{[%emt 00:00:18]} 1-0

[Event "SS Manhem Chess Week GM and IM tournaments 2018"]
[Site "Molnlycke kulturhus, Biblioteksgatan 2, Molnlycke, Sweden"]
[Date "2018.08.15"]
[Round "6.7"]
[White "Mikalsen, Erlend"]
[Black "Ernst, Thomas"]
[Result "1-0"]
[TimeControl "90 minutes for 40 moves + 30 minutes for the rest of the game + 30 seconds per move from move one."]
[WhiteTitle "FM"]
[BlackTitle "GM"]
[WhiteFideId "1507338"]
[BlackFideId "1700065"]
[WhiteElo "2289"]
[BlackElo "2346"]

1. e4 {[%clk 01:30:57]} {[%emt 00:00:01]} c5 {[%clk 01:30:49]} {[%emt
00:00:12]} 2. Nf3 {[%clk 01:31:20]} {[%emt 00:00:07]} d6 {[%clk 01:31:10]}
{[%emt 00:00:09]} 3. d4 {[%clk 01:31:46]} {[%emt 00:00:05]} cxd4 {[%clk
01:31:32]} {[%emt 00:00:08]} 4. Nxd4 {[%clk 01:32:11]} {[%emt 00:00:05]} Nf6
{[%clk 01:31:52]} {[%emt 00:00:09]} 5. Nc3 {[%clk 01:32:38]} {[%emt 00:00:04]}
Nc6 {[%clk 01:32:12]} {[%emt 00:00:10]} 6. Bg5 {[%clk 01:33:02]} {[%emt
00:00:05]} e6 {[%clk 01:32:34]} {[%emt 00:00:08]} 7. Qd2 {[%clk 01:33:28]}
{[%emt 00:00:04]} a6 {[%clk 01:32:52]} {[%emt 00:00:12]} 8. O-O-O {[%clk
01:33:54]} {[%emt 00:00:04]} h6 {[%clk 01:33:14]} {[%emt 00:00:08]} 9. Be3
{[%clk 01:34:04]} {[%emt 00:00:20]} Be7 {[%clk 01:32:19]} {[%emt 00:01:25]} 10.
f4 {[%clk 01:34:11]} {[%emt 00:00:24]} Qc7 {[%clk 01:31:42]} {[%emt 00:01:06]}
11. Be2 {[%clk 01:14:58]} {[%emt 00:19:43]} Bd7 {[%clk 01:29:36]} {[%emt
00:02:35]} 12. g4 {[%clk 01:06:05]} {[%emt 00:09:23]} Na5 {[%clk 01:28:29]}
{[%emt 00:01:37]} 13. h4 {[%clk 01:02:06]} {[%emt 00:04:29]} Nc4 {[%clk
01:27:44]} {[%emt 00:01:15]} 14. Qd3 {[%clk 00:59:20]} {[%emt 00:03:17]} Nxe3
{[%clk 01:27:54]} {[%emt 00:00:20]} 15. Qxe3 {[%clk 00:59:47]} {[%emt
00:00:02]} Qc5 {[%clk 01:16:32]} {[%emt 00:11:51]} 16. g5 {[%clk 00:59:13]}
{[%emt 00:01:05]} e5 {[%clk 01:16:36]} {[%emt 00:00:26]} 17. gxf6 {[%clk
00:45:06]} {[%emt 00:14:36]} exd4 {[%clk 01:16:54]} {[%emt 00:00:12]} 18. fxg7
{[%clk 00:42:14]} {[%emt 00:03:22]} Rg8 {[%clk 01:17:16]} {[%emt 00:00:08]} 19.
Rxd4 {[%clk 00:41:43]} {[%emt 00:01:02]} Bf6 {[%clk 01:17:17]} {[%emt
00:00:29]} 20. e5 {[%clk 00:40:07]} {[%emt 00:02:06]} dxe5 {[%clk 01:17:30]}
{[%emt 00:00:17]} 21. fxe5 {[%clk 00:30:56]} {[%emt 00:09:41]} Bxe5 {[%clk
01:17:48]} {[%emt 00:00:12]} 22. Rhd1 {[%clk 00:31:03]} {[%emt 00:00:22]} Rc8
{[%clk 01:15:22]} {[%emt 00:02:56]} 23. Bc4 {[%clk 00:16:13]} {[%emt 00:15:20]}
Rxg7 {[%clk 01:08:29]} {[%emt 00:07:23]} 24. Nd5 {[%clk 00:16:35]} {[%emt
00:00:08]} 1-0

[Event "SS Manhem Chess Week GM and IM tournaments 2018"]
[Site "Molnlycke kulturhus, Biblioteksgatan 2, Molnlycke, Sweden"]
[Date "2018.08.15"]
[Round "6.8"]
[White "Hobber, Anders"]
[Black "Antonsen, Mikkel"]
[Result "0-1"]
[TimeControl "90 minutes for 40 moves + 30 minutes for the rest of the game + 30 seconds per move from move one."]
[WhiteTitle "FM"]
[BlackTitle "IM"]
[WhiteFideId "1505424"]
[BlackFideId "1401378"]
[WhiteElo "2314"]
[BlackElo "2444"]

1. d4 {[%clk 01:26:10]} {[%emt 00:04:49]} d5 {[%clk 01:30:32]} {[%emt
00:00:29]} 2. Nf3 {[%clk 01:23:40]} {[%emt 00:02:59]} Nf6 {[%clk 01:30:49]}
{[%emt 00:00:14]} 3. e3 {[%clk 01:23:58]} {[%emt 00:00:11]} e6 {[%clk
01:21:17]} {[%emt 00:10:02]} 4. Bd3 {[%clk 01:23:08]} {[%emt 00:01:20]} Be7
{[%clk 01:21:17]} {[%emt 00:00:31]} 5. O-O {[%clk 01:22:14]} {[%emt 00:01:23]}
O-O {[%clk 01:21:40]} {[%emt 00:00:07]} 6. b3 {[%clk 01:20:13]} {[%emt
00:02:30]} b6 {[%clk 01:21:24]} {[%emt 00:00:47]} 7. Bb2 {[%clk 01:19:48]}
{[%emt 00:00:54]} Bb7 {[%clk 01:21:45]} {[%emt 00:00:10]} 8. Nbd2 {[%clk
01:18:54]} {[%emt 00:01:24]} Nbd7 {[%clk 01:22:01]} {[%emt 00:00:14]} 9. c4
{[%clk 01:17:16]} {[%emt 00:02:08]} Ne4 {[%clk 01:16:48]} {[%emt 00:05:43]} 10.
Rc1 {[%clk 01:13:10]} {[%emt 00:04:35]} f5 {[%clk 01:15:12]} {[%emt 00:02:07]}
11. cxd5 {[%clk 01:12:03]} {[%emt 00:01:37]} exd5 {[%clk 01:15:37]} {[%emt
00:00:05]} 12. Ne5 {[%clk 01:08:12]} {[%emt 00:04:20]} Nxe5 {[%clk 01:14:49]}
{[%emt 00:01:19]} 13. dxe5 {[%clk 01:06:38]} {[%emt 00:02:04]} Bc5 {[%clk
01:00:10]} {[%emt 00:15:10]} 14. Qc2 {[%clk 00:40:03]} {[%emt 00:27:04]} Rc8
{[%clk 00:46:47]} {[%emt 00:13:54]} 15. Nf3 {[%clk 00:35:58]} {[%emt 00:04:35]}
Qe7 {[%clk 00:43:40]} {[%emt 00:03:37]} 16. Qe2 {[%clk 00:33:29]} {[%emt
00:02:58]} f4 {[%clk 00:42:36]} {[%emt 00:01:35]} 17. exf4 {[%clk 00:29:06]}
{[%emt 00:04:53]} Rxf4 {[%clk 00:42:52]} {[%emt 00:00:14]} 18. g3 {[%clk
00:24:44]} {[%emt 00:04:52]} Rf7 {[%clk 00:25:01]} {[%emt 00:18:21]} 19. Bxe4
{[%clk 00:21:49]} {[%emt 00:03:24]} dxe4 {[%clk 00:25:26]} {[%emt 00:00:06]} 20.
Nd2 {[%clk 00:22:16]} {[%emt 00:00:03]} Rxf2 {[%clk 00:24:27]} {[%emt
00:01:29]} 21. Rxf2 {[%clk 00:22:12]} {[%emt 00:00:34]} e3 {[%clk 00:24:51]}
{[%emt 00:00:07]} 22. Bd4 {[%clk 00:18:36]} {[%emt 00:04:05]} Bxd4 {[%clk
00:21:51]} {[%emt 00:03:31]} 23. Qc4+ {[%clk 00:18:45]} {[%emt 00:00:21]} Kh8
{[%clk 00:22:16]} {[%emt 00:00:04]} 24. Qxd4 {[%clk 00:19:00]} {[%emt
00:00:15]} exf2+ {[%clk 00:22:40]} {[%emt 00:00:06]} 25. Kxf2 {[%clk 00:17:58]}
{[%emt 00:01:31]} Rd8 {[%clk 00:22:25]} {[%emt 00:00:46]} 26. Qe3 {[%clk
00:16:40]} {[%emt 00:01:48]} Qd7 {[%clk 00:19:53]} {[%emt 00:03:02]} 27. e6
{[%clk 00:12:10]} {[%emt 00:05:00]} Qxd2+ {[%clk 00:19:29]} {[%emt 00:00:54]}
28. Qxd2 {[%clk 00:12:36]} {[%emt 00:00:04]} Rxd2+ {[%clk 00:19:55]} {[%emt
00:00:05]} 29. Ke3 {[%clk 00:12:58]} {[%emt 00:00:07]} Rd6 {[%clk 00:19:14]}
{[%emt 00:01:10]} 30. Rxc7 {[%clk 00:13:05]} {[%emt 00:00:23]} Rxe6+ {[%clk
00:19:40]} {[%emt 00:00:04]} 31. Kd4 {[%clk 00:11:40]} {[%emt 00:01:54]} Bc6
{[%clk 00:19:39]} {[%emt 00:00:32]} 32. Rxa7 {[%clk 00:12:00]} {[%emt
00:00:10]} h6 {[%clk 00:18:18]} {[%emt 00:01:51]} 33. Rc7 {[%clk 00:11:16]}
{[%emt 00:01:14]} Kh7 {[%clk 00:16:16]} {[%emt 00:02:32]} 34. Rc8 {[%clk
00:11:04]} {[%emt 00:00:41]} Kg6 {[%clk 00:15:47]} {[%emt 00:01:00]} 35. Rb8
{[%clk 00:11:14]} {[%emt 00:00:20]} Bg2 {[%clk 00:13:29]} {[%emt 00:02:48]} 36.
a4 {[%clk 00:11:02]} {[%emt 00:00:42]} Kh5 {[%clk 00:12:55]} {[%emt 00:01:04]}
37. Rf8 {[%clk 00:10:40]} {[%emt 00:00:52]} g5 {[%clk 00:12:10]} {[%emt
00:01:16]} 38. Rf2 {[%clk 00:10:35]} {[%emt 00:00:35]} Bc6 {[%clk 00:11:52]}
{[%emt 00:00:48]} 39. h3 {[%clk 00:10:49]} {[%emt 00:00:16]} Kg6 {[%clk
00:11:19]} {[%emt 00:01:04]} 0-1

[Event "SS Manhem Chess Week GM and IM tournaments 2018"]
[Site "Molnlycke kulturhus, Biblioteksgatan 2, Molnlycke, Sweden"]
[Date "2018.08.15"]
[Round "6.9"]
[White "Kucuksari, Kaan"]
[Black "Rydstrom, Tom"]
[Result "1-0"]
[TimeControl "90 minutes for 40 moves + 30 minutes for the rest of the game + 30 seconds per move from move one."]
[WhiteTitle "FM"]
[BlackTitle "FM"]
[WhiteFideId "6380166"]
[BlackFideId "1714830"]
[WhiteElo "2329"]
[BlackElo "2316"]

1. d4 {[%clk 01:30:59]} g6 {[%clk 01:30:55]} {[%emt 00:00:06]} 2. c4 {[%clk
01:31:20]} {[%emt 00:00:08]} Bg7 {[%clk 01:31:21]} {[%emt 00:00:04]} 3. Nc3
{[%clk 01:31:26]} {[%emt 00:00:24]} c5 {[%clk 01:30:31]} {[%emt 00:01:20]} 4.
d5 {[%clk 01:31:48]} {[%emt 00:00:08]} f5 {[%clk 01:30:57]} {[%emt 00:00:04]} 5.
h4 {[%clk 01:31:46]} {[%emt 00:00:32]} Nf6 {[%clk 01:31:03]} {[%emt 00:00:23]}
6. e4 {[%clk 01:28:13]} {[%emt 00:04:03]} fxe4 {[%clk 01:26:33]} {[%emt
00:05:00]} 7. h5 {[%clk 01:23:19]} {[%emt 00:05:24]} d6 {[%clk 01:25:19]}
{[%emt 00:01:44]} 8. h6 {[%clk 01:18:28]} {[%emt 00:05:21]} Bf8 {[%clk
01:25:48]} {[%emt 00:00:02]} 9. Nh3 {[%clk 01:13:06]} {[%emt 00:05:52]} Bf5
{[%clk 01:16:29]} {[%emt 00:09:48]} 10. Be2 {[%clk 01:12:06]} {[%emt 00:01:30]}
Qc8 {[%clk 01:09:10]} {[%emt 00:07:50]} 11. Bg5 {[%clk 01:09:08]} {[%emt
00:03:28]} Ng4 {[%clk 00:57:58]} {[%emt 00:11:41]} 12. Nxe4 {[%clk 01:04:00]}
{[%emt 00:05:39]} Nxh6 {[%clk 00:54:11]} {[%emt 00:04:17]} 13. Qd2 {[%clk
00:56:21]} {[%emt 00:08:10]} Bxe4 {[%clk 00:42:43]} {[%emt 00:11:57]} 14. Bxh6
{[%clk 00:55:57]} {[%emt 00:00:55]} Bxg2 {[%clk 00:38:59]} {[%emt 00:04:13]} 15.
Nf4 {[%clk 00:33:33]} {[%emt 00:22:53]} Bxh1 {[%clk 00:38:22]} {[%emt
00:01:07]} 16. Ne6 {[%clk 00:34:03]} Be4 {[%clk 00:31:04]} {[%emt 00:07:48]} 17.
Qc3 {[%clk 00:14:22]} {[%emt 00:20:11]} Rg8 {[%clk 00:29:31]} {[%emt 00:02:03]}
18. Nxf8 {[%clk 00:14:51]} {[%emt 00:00:01]} Nd7 {[%clk 00:27:50]} {[%emt
00:02:11]} 19. Bg4 {[%clk 00:13:01]} {[%emt 00:02:19]} Bf5 {[%clk 00:28:01]}
{[%emt 00:00:20]} 20. Bxf5 {[%clk 00:13:23]} {[%emt 00:00:08]} gxf5 {[%clk
00:28:29]} {[%emt 00:00:03]} 21. Ne6 {[%clk 00:13:41]} {[%emt 00:00:11]} Ne5
{[%clk 00:23:38]} {[%emt 00:05:21]} 22. Bg7 {[%clk 00:13:38]} {[%emt 00:00:34]}
Qd7 {[%clk 00:19:34]} {[%emt 00:04:34]} 23. O-O-O {[%clk 00:11:48]} {[%emt
00:02:20]} Nf7 {[%clk 00:10:30]} {[%emt 00:09:34]} 24. Re1 {[%clk 00:09:05]}
{[%emt 00:03:13]} b5 {[%clk 00:08:23]} {[%emt 00:02:38]} 25. Qh3 {[%clk
00:07:33]} {[%emt 00:02:01]} Rxg7 {[%clk 00:01:04]} {[%emt 00:07:49]} 26. Nxg7+
{[%clk 00:07:58]} {[%emt 00:00:05]} Kd8 {[%clk 00:01:33]} {[%emt 00:00:01]} 27.
Qxh7 {[%clk 00:05:35]} {[%emt 00:02:53]} Ne5 {[%clk 00:00:40]} {[%emt
00:01:23]} 28. Rxe5 {[%clk 00:04:38]} {[%emt 00:01:27]} dxe5 {[%clk 00:01:09]}
{[%emt 00:00:02]} 29. Ne6+ {[%clk 00:04:34]} {[%emt 00:00:34]} Kc8 {[%clk
00:01:38]} {[%emt 00:00:01]} 30. Qg8+ {[%clk 00:04:43]} {[%emt 00:00:21]} Kb7
{[%clk 00:02:08]} {[%emt 00:00:01]} 31. Nxc5+ {[%clk 00:05:05]} {[%emt
00:00:07]} Kc7 {[%clk 00:02:24]} {[%emt 00:00:14]} 32. Qxa8 {[%clk 00:05:28]}
{[%emt 00:00:07]} Qd6 {[%clk 00:02:12]} {[%emt 00:00:42]} 33. Qxa7+ {[%clk
00:05:15]} {[%emt 00:00:43]} Kc8 {[%clk 00:02:41]} 34. Qa8+ {[%clk 00:05:03]}
{[%emt 00:00:42]} Kc7 {[%clk 00:03:09]} {[%emt 00:00:02]} 35. Qb7+ {[%clk
00:05:23]} {[%emt 00:00:10]} Kd8 {[%clk 00:03:37]} {[%emt 00:00:02]} 36. Ne6+
{[%clk 00:05:33]} {[%emt 00:00:19]} Ke8 {[%clk 00:04:05]} {[%emt 00:00:02]} 37.
c5 {[%clk 00:05:44]} {[%emt 00:00:20]} 1-0